bitfinex-derivatives/quotes_BTCF0:USTF0_20240829
["timestamp","ask_amount","ask_price","bid_price","bid_amount"]
[1724959405266,0.086077,59454.0,59453.0,0.002]
[1724959405570,0.096077,59454.0,59453.0,0.002]
[1724959405871,0.598677,59454.0,59453.0,0.002]
[1724959406266,0.094077,59454.0,59453.0,0.001]
[1724959406575,0.096077,59454.0,59453.0,0.002]
[1724959408074,0.012,59454.0,59453.0,0.002]
[1724959408371,0.012,59454.0,59453.0,0.086079]
[1724959409259,0.012,59454.0,59453.0,0.590679]
[1724959409459,0.01016944,59459.0,59458.0,0.084071]
[1724959409667,0.01016944,59459.0,59458.0,0.734871]
[1724959410173,0.2649,59470.0,59464.0,0.084063]
[1724959410372,0.2649,59470.0,59468.0,0.3608]
[1724959410563,0.27259027,59470.0,59468.0,0.3608]
[1724959410763,0.35664527,59470.0,59468.0,0.3608]
[1724959411475,0.27259027,59470.0,59468.0,0.3608]
[1724959411665,0.00769027,59470.0,59468.0,0.3608]
[1724959411860,0.26765108,59475.0,59468.0,0.3608]
[1724959412165,0.084054,59471.0,59468.0,0.3608]
[1724959412575,0.084055,59470.0,59468.0,0.3618]
[1724959413075,0.084055,59470.0,59468.0,0.3628]
[1724959414775,0.084056,59469.0,59468.0,0.3628]
[1724959416164,0.084056,59469.0,59468.0,0.001]
[1724959416370,0.084056,59469.0,59468.0,0.002]
[1724959416873,0.09179597,59469.0,59468.0,0.002]
[1724959417675,0.09179597,59469.0,59468.0,0.001]
[1724959417878,0.09179597,59469.0,59468.0,0.002]
[1724959418771,0.09179597,59469.0,59468.0,0.001]
[1724959419079,0.09179597,59469.0,59468.0,0.002]
[1724959419779,0.09179597,59469.0,59468.0,0.001]
[1724959419982,0.09179597,59469.0,59468.0,0.002]
[1724959420470,0.09179597,59469.0,59468.0,0.292]
[1724959420669,0.00773997,59469.0,59468.0,0.6528]
[1724959420876,0.084053,59471.0,59468.0,0.6528]
[1724959421269,0.62845108,59475.0,59468.0,0.6518]
[1724959421474,0.084054,59471.0,59468.0,0.6528]
[1724959421781,0.084056,59469.0,59468.0,0.3628]
[1724959421979,0.084056,59469.0,59468.0,0.3618]
[1724959422172,0.084056,59469.0,59468.0,0.3628]
[1724959422373,0.63610503,59475.0,59469.0,0.084055]
[1724959422374,0.084049,59474.0,59469.0,0.084055]
[1724959422586,0.63610503,59475.0,59472.0,0.29]
[1724959422785,0.00790503,59475.0,59474.0,0.444849]
[1724959422979,0.3608,59488.0,59474.0,0.8652]
[1724959423184,0.3608,59493.0,59487.0,0.29]
[1724959423485,0.3686314,59493.0,59492.0,0.29]
[1724959423677,0.0078314,59493.0,59492.0,0.29]
[1724959423881,0.685,59500.0,59492.0,0.29]
[1724959424177,0.685,59500.0,59487.0,0.0002523]
[1724959424178,0.3608,59495.0,59488.0,0.29]
[1724959425180,0.3608,59495.0,59492.0,0.001]
[1724959425780,0.084026,59491.0,59488.0,0.002]
[1724959426282,0.33321345,59500.0,59489.0,0.3608]
[1724959426473,0.00781344,59500.0,59499.0,0.3608]
[1724959426674,0.2695,59506.0,59499.0,0.444814]
[1724959426869,0.2695,59506.0,59503.0,0.29]
[1724959427085,0.27727284,59506.0,59503.0,0.29]
[1724959427282,0.084014,59499.0,59494.0,0.3608]
[1724959427475,0.3608,59504.0,59492.0,0.002]
[1724959427780,0.084011,59501.0,59493.0,0.29]
[1724959427984,0.084012,59500.0,59493.0,0.29]
[1724959428173,0.084012,59500.0,59497.0,0.3608]
[1724959428772,0.3608,59499.0,59492.0,0.001]
[1724959429078,0.3608,59493.0,59492.0,0.001]
[1724959429277,0.3608,59493.0,59486.0,0.084032]
[1724959429475,0.3608,59493.0,59490.0,0.29]
[1724959430084,0.3608,59493.0,59487.0,0.0002523]
[1724959430085,0.3608,59493.0,59491.0,0.084024]
[1724959430378,0.3608,59493.0,59487.0,0.3602523]
[1724959430379,0.3608,59493.0,59487.0,0.0002523]
[1724959430585,0.3608,59488.0,59487.0,0.0002523]
[1724959431186,0.444829,59488.0,59487.0,0.0002523]
[1724959431373,0.444829,59488.0,59487.0,0.0012523]
[1724959432086,0.08404,59480.0,59471.0,0.340653]
[1724959432382,0.3608,59480.0,59472.0,0.084051]
[1724959432693,0.3608,59480.0,59471.0,0.2566]
[1724959432987,0.3608,59480.0,59472.0,0.084051]
[1724959433582,0.444841,59480.0,59472.0,0.084051]
[1724959434277,0.3618,59480.0,59477.0,0.084044]
[1724959434583,0.00866037,59480.0,59479.0,0.084042]
[1724959435184,0.00766037,59480.0,59479.0,0.084042]
[1724959435390,0.001,59480.0,59479.0,0.084042]
[1724959435696,0.001,59480.0,59476.0,0.084046]
[1724959436583,0.001,59480.0,59470.0,0.36105208]
[1724959436584,0.3608,59477.0,59470.0,0.36105208]
[1724959436785,0.084048,59475.0,59470.0,0.36105208]
[1724959437088,0.3608,59477.0,59470.0,0.36105208]
[1724959437290,0.3598,59477.0,59470.0,0.36105208]
[1724959437883,0.083046,59476.0,59470.0,0.36105208]
[1724959438087,0.6317,59477.0,59470.0,0.00025208]
[1724959438088,0.3608,59471.0,59470.0,0.00025208]
[1724959438286,0.3608,59471.0,59470.0,0.08430608]
[1724959438581,0.3608,59471.0,59470.0,0.00025208]
[1724959438789,0.444853,59471.0,59470.0,0.00025208]
[1724959439401,0.3608,59471.0,59470.0,0.00025208]
[1724959439697,0.444853,59471.0,59470.0,0.00025208]
[1724959440389,0.3608,59471.0,59470.0,0.00025208]
[1724959441195,0.36846943,59471.0,59470.0,0.00025208]
[1724959441595,0.36846943,59471.0,59449.0,0.084083]
[1724959441596,0.084073,59457.0,59449.0,0.084083]
[1724959441797,2.19370943,59471.0,59450.0,0.084082]
[1724959441798,0.3608,59451.0,59450.0,0.084082]
[1724959441999,0.3608,59451.0,59447.0,0.2477]
[1724959442300,0.3608,59463.0,59462.0,0.084066]
[1724959443088,0.0002523,59468.0,59462.0,0.084066]
[1724959443488,0.00808431,59468.0,59462.0,0.084066]
[1724959443695,0.0002523,59468.0,59462.0,0.084066]
[1724959443887,0.0002523,59468.0,59457.0,0.0002523]
[1724959444092,0.084067,59462.0,59457.0,0.0002523]
[1724959444495,0.3628,59463.0,59458.0,0.084071]
[1724959444690,0.002,59463.0,59462.0,0.084066]
[1724959444891,0.002,59463.0,59462.0,0.354966]
[1724959445195,0.0002523,59468.0,59462.0,0.715766]
[1724959445396,0.0002523,59468.0,59463.0,0.444864]
[1724959445793,0.0002523,59468.0,59462.0,0.2739]
[1724959445794,0.3608,59467.0,59462.0,0.2739]
[1724959445997,0.3608,59467.0,59462.0,0.004]
[1724959445998,0.084064,59463.0,59462.0,0.004]
[1724959446500,0.0002523,59468.0,59462.0,0.3648]
[1724959446699,0.0012523,59468.0,59464.0,0.084063]
[1724959447287,0.0012523,59468.0,59462.0,0.004]
[1724959447493,0.3608,59463.0,59457.0,0.3610523]
[1724959448199,0.3618,59463.0,59457.0,0.3610523]
[1724959448597,0.3608,59458.0,59457.0,0.0002523]
[1724959448893,0.444871,59458.0,59457.0,0.0102523]
[1724959450594,0.444871,59458.0,59457.0,0.0182523]
[1724959450804,1.549431,59458.0,59457.0,0.0182523]
[1724959451018,0.084079,59453.0,59446.0,0.05005235]
[1724959451303,0.3608,59447.0,59444.0,0.084091]
[1724959451489,0.3608,59447.0,59441.0,0.2645]
[1724959451490,0.3608,59447.0,59445.0,0.084089]
[1724959451807,0.3608,59447.0,59441.0,0.2645]
[1724959451808,0.3608,59447.0,59446.0,0.084088]
[1724959452008,0.3588,59447.0,59446.0,0.084088]
[1724959452190,0.0002523,59452.0,59446.0,0.084088]
[1724959452504,0.0002523,59452.0,59441.0,0.6253]
[1724959452505,0.0002523,59452.0,59443.0,0.29]
[1724959452813,0.0002523,59452.0,59451.0,0.084081]
[1724959453400,0.0002523,59452.0,59451.0,1.839481]
[1724959453791,0.3608,59465.0,59464.0,0.084063]
[1724959454100,0.36856164,59465.0,59464.0,0.084063]
[1724959455204,0.38156164,59465.0,59464.0,0.085063]
[1724959455405,0.39356164,59465.0,59464.0,0.086063]
[1724959455703,0.03276164,59465.0,59464.0,0.951383]
[1724959455898,0.02076164,59465.0,59464.0,0.950383]
[1724959456400,0.02076164,59465.0,59464.0,1.550383]
[1724959456804,0.00876164,59465.0,59464.0,0.444863]
[1724959456997,0.01176164,59465.0,59464.0,0.444863]
[1724959457701,0.01076164,59465.0,59464.0,0.444863]
[1724959457901,0.004,59465.0,59464.0,0.444863]
[1724959458099,0.004,59465.0,59464.0,0.949383]
[1724959458305,0.004,59465.0,59464.0,1.549383]
[1724959459307,0.004,59465.0,59464.0,1.554383]
[1724959459308,0.003,59465.0,59464.0,1.554383]
[1724959460002,0.00813982,59470.0,59469.0,0.084056]
[1724959461103,0.00813982,59470.0,59469.0,0.444856]
[1724959461611,0.01013982,59470.0,59469.0,0.949336]
[1724959461807,0.01013982,59470.0,59469.0,0.444856]
[1724959462204,0.01013982,59470.0,59469.0,0.084056]
[1724959463904,0.01013982,59470.0,59460.0,0.7208]
[1724959464113,0.084062,59465.0,59460.0,0.3608]
[1724959464812,0.084062,59465.0,59459.0,0.0002523]
[1724959464813,0.084066,59462.0,59459.0,0.0002523]
[1724959465003,0.084067,59461.0,59459.0,0.0002523]
[1724959465405,0.084067,59461.0,59460.0,0.007]
[1724959465904,0.084067,59461.0,59459.0,0.0002523]
[1724959466302,0.005,59462.0,59459.0,0.0002523]
[1724959467205,0.005,59462.0,59460.0,0.001]
[1724959467607,0.008,59461.0,59460.0,0.002]
[1724959468017,0.008,59461.0,59460.0,0.001]
[1724959468309,0.012,59462.0,59459.0,0.0012523]
[1724959468812,0.006,59461.0,59459.0,0.0012523]
[1724959469610,0.084069,59460.0,59459.0,0.0012523]
[1724959470703,0.083069,59460.0,59459.0,0.0012523]
[1724959471214,0.083069,59460.0,59459.0,0.0002523]
[1724959471517,0.097069,59460.0,59459.0,0.0022523]
[1724959472017,0.097069,59460.0,59440.0,0.05005235]
[1724959472018,0.02240345,59460.0,59440.0,0.05005235]
[1724959472315,0.02240345,59460.0,59439.0,0.3608]
[1724959472316,0.084073,59457.0,59446.0,0.3608]
[1724959472707,0.05393618,59460.0,59452.0,0.084079]
[1724959472911,0.098069,59460.0,59452.0,0.084079]
[1724959473209,0.098069,59460.0,59450.0,0.0002523]
[1724959473411,0.02,59460.0,59459.0,0.001]
[1724959473711,0.023,59460.0,59459.0,0.002]
[1724959473916,0.023,59460.0,59459.0,0.08607]
[1724959474226,0.004,59460.0,59459.0,1.54963]
[1724959474510,0.004,59460.0,59459.0,1.54863]
[1724959474922,0.0002523,59462.0,59459.0,1.54863]
[1724959475105,0.0002523,59462.0,59460.0,0.50452]
[1724959475504,0.0002523,59462.0,59461.0,0.588587]
[1724959475714,0.0002523,59462.0,59461.0,0.084067]
[1724959477522,0.0002523,59462.0,59461.0,0.086067]
[1724959477922,0.0002523,59462.0,59461.0,0.090067]
[1724959479026,0.0002523,59462.0,59461.0,0.089067]
[1724959479720,0.0002523,59462.0,59461.0,0.088067]
[1724959480623,0.0002523,59462.0,59461.0,0.085067]
[1724959480818,0.0002523,59462.0,59461.0,0.089067]
[1724959481026,0.0002523,59462.0,59461.0,0.091067]
[1724959481318,0.0002523,59462.0,59461.0,0.090067]
[1724959481722,0.0002523,59462.0,59461.0,0.087067]
[1724959481930,0.0002523,59462.0,59461.0,0.091067]
[1724959482916,0.0002523,59462.0,59461.0,0.089067]
[1724959484223,0.0002523,59462.0,59461.0,0.088067]
[1724959485028,0.0002523,59462.0,59461.0,0.091067]
[1724959485823,0.0002523,59462.0,59461.0,0.090067]
[1724959486020,0.0002523,59462.0,59461.0,0.091067]
[1724959486623,0.0002523,59462.0,59461.0,0.090067]
[1724959487333,0.0002523,59462.0,59461.0,0.084067]
[1724959487627,0.0002523,59462.0,59461.0,0.085067]
[1724959489118,0.2438523,59462.0,59461.0,0.092067]
[1724959489322,0.0002523,59462.0,59461.0,0.092067]
[1724959489719,0.0002523,59462.0,59461.0,0.086067]
[1724959489925,0.0002523,59462.0,59461.0,0.087067]
[1724959490628,0.0002523,59462.0,59461.0,0.084067]
[1724959491231,0.0002523,59462.0,59461.0,0.085067]
[1724959492327,0.0002523,59462.0,59461.0,0.084067]
[1724959492529,0.0002523,59462.0,59460.0,0.29]
[1724959492530,0.084061,59466.0,59460.0,0.29]
[1724959492936,0.0492766,59468.0,59467.0,0.084059]
[1724959493146,0.00928628,59468.0,59467.0,0.084059]
[1724959493436,0.00928628,59468.0,59465.0,0.29]
[1724959493437,0.2549,59469.0,59468.0,0.084057]
[1724959493830,0.26439351,59469.0,59468.0,0.084057]
[1724959494137,0.62519351,59469.0,59468.0,0.084057]
[1724959495025,0.70924951,59469.0,59465.0,0.084061]
[1724959496044,0.12404832,59468.0,59465.0,0.084061]
[1724959496224,0.12404832,59468.0,59463.0,0.0002523]
[1724959496225,0.084059,59467.0,59463.0,0.0843163]
[1724959496429,0.3608,59464.0,59463.0,0.0002523]
[1724959496934,0.444863,59464.0,59463.0,0.0002523]
[1724959497431,0.3608,59464.0,59454.0,0.084076]
[1724959497828,0.3608,59464.0,59451.0,0.29]
[1724959498029,0.084081,59452.0,59446.0,0.34005235]
[1724959498226,0.5084,59451.0,59446.0,0.374087]
[1724959498935,0.592481,59451.0,59443.0,0.41110465]
[1724959499133,0.592481,59451.0,59447.0,0.29]
[1724959499134,0.5084,59451.0,59447.0,0.29]
[1724959500726,0.5084,59451.0,59447.0,0.303]
[1724959501335,0.5084,59451.0,59447.0,0.317]
[1724959501727,0.5084,59451.0,59447.0,0.027]
[1724959502627,0.51804254,59451.0,59447.0,0.027]
[1724959502841,0.51804254,59451.0,59448.0,0.084086]
[1724959504338,0.51804254,59451.0,59448.0,0.098086]
[1724959504637,0.51804254,59451.0,59448.0,0.110086]
[1724959505539,0.3608,59472.0,59450.0,0.444883]
[1724959505743,0.3608,59472.0,59470.0,0.084054]
[1724959505744,0.2567,59471.0,59470.0,0.084054]
[1724959506039,0.2567,59471.0,59463.0,0.29]
[1724959506238,0.2567,59471.0,59470.0,0.084054]
[1724959507743,0.26612087,59471.0,59470.0,0.084054]
[1724959512548,0.55612087,59471.0,59468.0,0.3608]
[1724959512739,0.084059,59468.0,59465.0,0.0002523]
[1724959512935,0.2531,59467.0,59465.0,0.0002523]
[1724959513743,0.337159,59467.0,59465.0,0.0002523]
[1724959513942,0.44486,59466.0,59465.0,0.0002523]
[1724959514542,0.48457491,59466.0,59465.0,0.0002523]
[1724959516252,0.48457491,59466.0,59454.0,0.3608]
[1724959516253,0.084067,59462.0,59454.0,0.3608]
[1724959516457,0.08407,59459.0,59454.0,0.3608]
[1724959517355,0.3608,59461.0,59457.0,0.084072]
[1724959517550,0.0002523,59462.0,59460.0,0.3608]
[1724959517744,0.0002523,59462.0,59461.0,0.084067]
[1724959518848,0.0002523,59462.0,59461.0,0.374067]
[1724959519053,0.0002523,59462.0,59461.0,1.722187]
[1724959519249,0.00937273,59464.0,59463.0,0.084064]
[1724959519448,0.3608,59466.0,59465.0,0.084062]
[1724959520050,0.03951126,59476.0,59471.0,0.084053]
[1724959520252,0.12355726,59476.0,59472.0,0.084051]
[1724959520553,0.12355726,59476.0,59468.0,0.0002523]
[1724959520554,0.29,59473.0,59468.0,0.0002523]
[1724959520746,0.084056,59469.0,59468.0,0.0002523]
[1724959521551,0.083056,59469.0,59468.0,0.0002523]
[1724959522448,0.082056,59469.0,59468.0,0.0002523]
[1724959523255,0.372056,59469.0,59468.0,0.0002523]
[1724959524056,0.082056,59469.0,59468.0,0.0002523]
[1724959525550,0.09138564,59469.0,59468.0,0.0002523]
[1724959527567,1.40380964,59469.0,59449.0,0.3608]
[1724959527747,0.3608,59455.0,59448.0,0.2436]
[1724959527951,0.3608,59455.0,59452.0,0.084079]
[1724959528653,0.3608,59455.0,59449.0,0.098084]
[1724959528956,0.3608,59450.0,59449.0,0.014]
[1724959529456,0.071084,59449.0,59448.0,0.0142523]
[1724959530143,0.084079,59453.0,59448.0,0.3750523]
[1724959530349,0.084079,59453.0,59448.0,0.3610523]
[1724959530545,0.084079,59453.0,59452.0,0.014]
[1724959531155,0.00944346,59453.0,59448.0,0.3750523]
[1724959531356,0.001,59450.0,59449.0,0.014]
[1724959531747,0.03951126,59458.0,59449.0,0.014]
[1724959531949,0.4916323,59459.0,59453.0,0.084078]
[1724959532149,0.4905523,59459.0,59453.0,0.084078]
[1724959532351,0.3608,59456.0,59453.0,0.084078]
[1724959532546,0.03951126,59458.0,59454.0,0.084077]
[1724959532751,0.53954412,59459.0,59454.0,0.084077]
[1724959532951,0.3608,59455.0,59454.0,0.084077]
[1724959533153,0.3608,59457.0,59454.0,0.084077]
[1724959533557,0.001,59453.0,59452.0,0.003]
[1724959533761,0.3608,59457.0,59454.0,0.011]
[1724959534463,0.001,59457.0,59456.0,0.084074]
[1724959535052,0.002,59457.0,59456.0,0.6508]
[1724959535259,0.002,59457.0,59456.0,0.818948]
[1724959535459,0.084051,59473.0,59457.0,0.50456]
[1724959535663,0.329952,59472.0,59465.0,0.44486]
[1724959535963,0.3608,59469.0,59465.0,0.08406]
[1724959536360,0.084055,59470.0,59465.0,0.08406]
[1724959536951,0.28541126,59472.0,59464.0,0.3608]
[1724959537157,0.2459,59472.0,59464.0,0.3608]
[1724959537864,0.007,59470.0,59468.0,0.084056]
[1724959538161,0.008,59469.0,59468.0,0.084056]
[1724959538754,0.3608,59470.0,59464.0,0.3608]
[1724959538959,0.3608,59470.0,59464.0,0.444863]
[1724959539159,0.3608,59470.0,59464.0,0.3608]
[1724959539971,0.006,59469.0,59468.0,0.001]
[1724959541266,0.006,59469.0,59466.0,0.08406]
[1724959541267,0.006,59470.0,59466.0,0.08406]
[1724959541566,0.006,59470.0,59468.0,0.001]
[1724959541567,0.008,59469.0,59468.0,0.001]
[1724959542068,0.015,59469.0,59468.0,0.086057]
[1724959542878,0.013,59469.0,59468.0,0.085057]
[1724959543065,0.012,59469.0,59468.0,0.085057]
[1724959543458,0.012,59469.0,59468.0,0.084057]
[1724959543664,0.009,59469.0,59468.0,0.084057]
[1724959547173,0.009,59469.0,59464.0,0.444862]
[1724959547669,0.2449,59468.0,59464.0,0.3608]
[1724959547869,0.491,59468.0,59464.0,0.3608]
[1724959548369,0.29,59467.0,59461.0,0.0002523]
[1724959548588,0.444866,59462.0,59461.0,0.0002523]
[1724959548759,0.48437726,59462.0,59461.0,0.0002523]
[1724959550367,0.48437726,59462.0,59442.0,0.084094]
[1724959550368,1.50483126,59462.0,59442.0,0.084094]
[1724959550567,0.3608,59450.0,59442.0,0.084094]
[1724959550766,0.3588,59450.0,59442.0,0.084094]
[1724959551570,0.3588,59450.0,59444.0,0.2465]
[1724959552069,0.3598,59450.0,59444.0,0.2605]
[1724959552368,0.3608,59450.0,59444.0,0.2605]
[1724959552766,0.444883,59450.0,59444.0,0.2605]
[1724959553070,0.084085,59449.0,59444.0,0.2605]
[1724959553279,0.084088,59447.0,59444.0,0.2605]
[1724959554682,0.08409,59445.0,59444.0,0.028]
[1724959554865,0.08409,59445.0,59444.0,0.014]
[1724959555064,0.08409,59445.0,59444.0,0.028]
[1724959556772,0.08409,59445.0,59444.0,0.014]
[1724959556977,0.08509,59445.0,59444.0,0.028]
[1724959557467,0.08609,59445.0,59444.0,0.028]
[1724959557870,0.002,59445.0,59444.0,0.112091]
[1724959558170,0.01133718,59449.0,59448.0,0.084086]
[1724959558375,0.0002523,59453.0,59451.0,0.084081]
[1724959558571,0.0843313,59453.0,59451.0,0.084081]
[1724959558772,0.08408,59452.0,59451.0,0.084081]
[1724959559477,0.01144968,59453.0,59452.0,0.08408]
[1724959560073,0.01144968,59453.0,59449.0,0.084084]
[1724959560373,0.3608,59450.0,59448.0,0.012]
[1724959560584,0.2192,59449.0,59448.0,0.012]
[1724959560877,0.01244968,59453.0,59452.0,0.08408]
[1724959561076,0.40067811,59463.0,59462.0,0.084066]
[1724959561282,0.3608,59463.0,59462.0,0.084066]
[1724959561580,0.37191493,59463.0,59462.0,0.084066]
[1724959562371,0.01111493,59463.0,59462.0,0.444866]
[1724959562570,0.003,59463.0,59462.0,0.444866]
[1724959563284,0.006,59463.0,59462.0,0.444866]
[1724959564077,0.003,59463.0,59462.0,0.805666]
[1724959564272,0.0002523,59468.0,59467.0,0.084059]
[1724959564974,0.0002523,59468.0,59467.0,0.444859]
[1724959566082,0.0042523,59468.0,59467.0,0.444859]
[1724959566784,0.0082523,59468.0,59467.0,0.444859]
[1724959569676,0.0923093,59468.0,59467.0,0.444859]
[1724959569978,0.0923093,59468.0,59464.0,0.084062]
[1724959569979,0.084062,59465.0,59464.0,0.084062]
[1724959570479,0.084062,59465.0,59457.0,0.0002523]
[1724959570480,0.084066,59463.0,59462.0,0.084064]
[1724959570686,0.2287,59467.0,59463.0,0.084064]
[1724959571178,0.001,59465.0,59463.0,0.084064]
[1724959571373,0.084066,59463.0,59459.0,0.084069]
[1724959571578,0.2273,59462.0,59457.0,0.0002523]
[1724959571774,0.2273,59462.0,59460.0,0.084068]
[1724959572073,0.001,59465.0,59461.0,0.3608]
[1724959572575,0.001,59465.0,59464.0,0.374063]
[1724959572773,0.01222491,59465.0,59464.0,0.374063]
[1724959572974,0.001,59465.0,59464.0,0.374063]
[1724959573177,0.0002523,59468.0,59467.0,0.084059]
[1724959573479,0.314163,59464.0,59463.0,0.001]
[1724959573675,0.314163,59464.0,59463.0,0.085064]
[1724959573979,0.03995934,59467.0,59463.0,0.001]
[1724959574173,0.0843103,59468.0,59462.0,0.3608]
[1724959574374,0.0843103,59468.0,59464.0,0.002]
[1724959574672,0.084059,59467.0,59464.0,0.002]
[1724959574876,0.084059,59467.0,59464.0,0.086063]
[1724959575477,0.0002523,59468.0,59464.0,0.086063]
[1724959575478,0.084061,59466.0,59464.0,0.086063]
[1724959575869,0.084061,59466.0,59464.0,0.084063]
[1724959576277,0.0012523,59468.0,59467.0,0.084059]
[1724959576478,0.0012523,59468.0,59467.0,0.444859]
[1724959576879,0.0012523,59468.0,59467.0,0.084059]
[1724959577074,0.0012523,59468.0,59462.0,0.3608]
[1724959577075,0.0002523,59468.0,59463.0,0.084064]
[1724959577286,0.08606,59467.0,59464.0,0.084062]
[1724959577476,0.08606,59467.0,59462.0,0.3608]
[1724959577477,0.002,59466.0,59465.0,0.084062]
[1724959577880,0.08606,59466.0,59465.0,0.084062]
[1724959578085,0.084064,59464.0,59463.0,0.084064]
[1724959579979,0.084064,59464.0,59463.0,0.086064]
[1724959580382,0.084064,59464.0,59463.0,0.009]
[1724959580383,0.085064,59464.0,59463.0,0.009]
[1724959581083,0.168142,59458.0,59457.0,0.0002523]
[1724959581289,0.083071,59458.0,59457.0,0.0002523]
[1724959582082,0.082071,59458.0,59457.0,0.0002523]
[1724959582689,0.25006834,59461.0,59457.0,0.0032523]
[1724959583490,0.25006834,59461.0,59457.0,0.0052523]
[1724959583491,0.084071,59458.0,59457.0,0.0052523]
[1724959583688,0.168142,59458.0,59457.0,0.0052523]
[1724959584394,0.084071,59458.0,59457.0,0.0052523]
[1724959584985,0.168142,59458.0,59457.0,0.0052523]
[1724959585285,0.082089,59446.0,59441.0,0.444895]
[1724959585889,0.08409,59445.0,59441.0,0.444895]
[1724959586389,0.083089,59446.0,59442.0,0.084094]
[1724959586585,0.084089,59446.0,59445.0,0.05005235]
[1724959586985,0.083089,59446.0,59445.0,0.05005235]
[1724959587287,0.0002523,59449.0,59441.0,0.3818]
[1724959587288,0.08509,59445.0,59442.0,0.05005235]
[1724959587485,0.084094,59442.0,59441.0,0.07105235]
[1724959587790,0.084094,59442.0,59441.0,0.021]
[1724959587992,0.084094,59442.0,59441.0,0.007]
[1724959588180,0.154188,59442.0,59441.0,0.007]
[1724959588386,0.070094,59442.0,59437.0,0.05030465]
[1724959588593,0.4582,59438.0,59437.0,0.0002523]
[1724959588884,0.084116,59427.0,59425.0,0.05005235]
[1724959589081,0.084116,59427.0,59420.0,0.084124]
[1724959589082,0.29,59434.0,59420.0,0.05005235]
[1724959589282,0.4919,59437.0,59426.0,0.084117]
[1724959589485,0.08411,59431.0,59426.0,0.084117]
[1724959589695,0.29,59432.0,59419.0,0.2254]
[1724959589889,0.07812,59424.0,59422.0,0.0002523]
[1724959590697,0.07612,59424.0,59422.0,0.0002523]
[1724959590898,0.084121,59423.0,59422.0,0.0002523]
[1724959591097,0.311721,59423.0,59422.0,0.0002523]
[1724959592593,0.557421,59423.0,59422.0,0.0002523]
[1724959592898,0.848421,59423.0,59410.0,0.2254]
[1724959593104,0.3608,59420.0,59410.0,0.2254]
[1724959593400,0.084133,59415.0,59409.0,0.3608]
[1724959593898,0.084133,59415.0,59409.0,0.444941]
[1724959594097,0.0002523,59418.0,59414.0,0.3608]
[1724959595894,0.0012523,59418.0,59414.0,0.3608]
[1724959596101,0.0012523,59418.0,59415.0,0.084131]
[1724959596798,0.084132,59415.0,59414.0,0.3608]
[1724959596997,0.084132,59415.0,59404.0,0.3608]
[1724959596998,0.444932,59415.0,59404.0,0.3608]
[1724959597201,0.084144,59408.0,59404.0,0.3608]
[1724959598393,0.084144,59407.0,59404.0,0.3608]
[1724959598601,0.084144,59407.0,59386.0,0.37135235]
[1724959598602,0.084156,59398.0,59397.0,0.3608]
[1724959598795,0.084166,59391.0,59389.0,0.084168]
[1724959598999,0.3608,59400.0,59385.0,0.3608]
[1724959599000,0.3608,59392.0,59385.0,0.3608]
[1724959599505,0.084173,59386.0,59385.0,0.3608]
[1724959600002,0.084173,59386.0,59383.0,0.00016913]
[1724959600601,0.3608,59392.0,59384.0,1.226]
[1724959600602,0.001,59392.0,59384.0,1.226]
[1724959600806,0.3608,59408.0,59384.0,1.226]
[1724959600807,0.3608,59408.0,59391.0,0.7208]
[1724959600991,0.444943,59408.0,59403.0,0.3608]
[1724959601299,0.3608,59408.0,59403.0,0.3608]
[1724959601692,0.37220631,59408.0,59403.0,0.3608]
[1724959601889,0.084148,59404.0,59403.0,0.3608]
[1724959602993,0.084152,59402.0,59400.0,0.00025252]
[1724959603197,0.084152,59401.0,59400.0,0.00025252]
[1724959605301,0.444952,59401.0,59400.0,0.00025252]
[1724959605609,0.084152,59401.0,59400.0,0.00025252]
[1724959606198,0.444952,59401.0,59400.0,0.00025252]
[1724959606501,0.09528934,59401.0,59400.0,0.00025252]
[1724959607200,0.01113734,59401.0,59400.0,0.00025252]
[1724959607404,0.084146,59406.0,59400.0,0.00025252]
[1724959607708,0.084146,59406.0,59401.0,0.084152]
[1724959608394,0.084146,59406.0,59403.0,0.084149]
[1724959608596,0.37213248,59408.0,59403.0,0.3608]
[1724959608812,0.37213248,59408.0,59406.0,0.084145]
[1724959609003,0.37213248,59408.0,59407.0,0.084144]
[1724959609210,0.01133248,59408.0,59407.0,0.084144]
[1724959609703,0.32445252,59411.0,59410.0,0.084139]
[1724959609906,0.32445252,59411.0,59410.0,0.444939]
[1724959610303,0.00025252,59411.0,59410.0,0.444939]
[1724959611010,0.00925252,59411.0,59410.0,0.444939]
[1724959612404,0.09339052,59411.0,59410.0,0.084139]
[1724959612708,0.00025252,59411.0,59410.0,0.084139]
[1724959613302,0.00025252,59411.0,59410.0,0.589099]
[1724959613610,0.084127,59419.0,59418.0,0.084127]
[1724959613802,0.3608,59420.0,59413.0,0.3608]
[1724959613803,0.084131,59417.0,59413.0,0.3608]
[1724959614408,0.084131,59417.0,59416.0,0.084131]
[1724959615213,0.088131,59417.0,59416.0,0.084131]
[1724959615506,0.004,59417.0,59416.0,0.084131]
[1724959615711,0.08437652,59421.0,59413.0,0.3608]
[1724959615913,0.007,59417.0,59413.0,0.3608]
[1724959616507,0.007,59417.0,59415.0,0.3608]
[1724959616908,0.011,59417.0,59416.0,0.084131]
[1724959617706,0.013,59417.0,59415.0,0.3608]
[1724959617903,0.084139,59410.0,59409.0,0.00025252]
[1724959618407,0.084139,59410.0,59409.0,0.08439352]
[1724959619213,0.014,59417.0,59413.0,0.084135]
[1724959619709,0.02731625,59417.0,59413.0,0.084135]
[1724959620217,0.02731625,59417.0,59416.0,0.084131]
[1724959620218,0.02031625,59417.0,59416.0,0.084131]